[Event "Early-Titled-Tuesday-Blitz-December-26-2023"]
[Site "Chess.com"]
[Date "2023.12.26"]
[Round "6"]
[White "Schachmalanders"]
[Black "wqws"]
[Result "0-1"]
[WhiteElo "2400"]
[BlackElo "2722"]
[TimeControl "180+1"]
[EndTime "9:06:37 PST"]
[Termination "wqws won by resignation"]

1. e4 {[%clk 0:03:00.9]} 1... e5 {[%clk 0:03:00]} 2. Nf3 {[%clk 0:02:59]} 2...
Nc6 {[%clk 0:03:00.4]} 3. d4 {[%clk 0:02:59.2]} 3... exd4 {[%clk 0:03:00.2]} 4.
Nxd4 {[%clk 0:03:00.1]} 4... Nf6 {[%clk 0:03:00.7]} 5. Nc3 {[%clk 0:03:00.1]}
5... Bb4 {[%clk 0:03:01.2]} 6. Nxc6 {[%clk 0:03:00.2]} 6... bxc6 {[%clk
0:03:02.1]} 7. Bd3 {[%clk 0:03:00.6]} 7... d5 {[%clk 0:03:00.2]} 8. exd5 {[%clk
0:03:01.5]} 8... O-O {[%clk 0:03:00]} 9. O-O {[%clk 0:03:01.5]} 9... cxd5 {[%clk
0:03:00.6]} 10. h3 {[%clk 0:03:01.1]} 10... c5 {[%clk 0:02:59.6]} 11. Qf3 {[%clk
0:02:57.6]} 11... Be6 {[%clk 0:02:58.2]} 12. Bg5 {[%clk 0:02:52.3]} 12... Bxc3
{[%clk 0:02:56.2]} 13. bxc3 {[%clk 0:02:51.8]} 13... h6 {[%clk 0:02:56.6]} 14.
Bxf6 {[%clk 0:02:47.3]} 14... Qxf6 {[%clk 0:02:57.5]} 15. Qxf6 {[%clk
0:02:47.4]} 15... gxf6 {[%clk 0:02:58]} 16. Rab1 {[%clk 0:02:46.4]} 16... Rab8
{[%clk 0:02:57.4]} 17. Rfe1 {[%clk 0:02:44.6]} 17... Rfd8 {[%clk 0:02:52.7]} 18.
f4 {[%clk 0:02:43.4]} 18... c4 {[%clk 0:02:43.3]} 19. Bf1 {[%clk 0:02:35.7]}
19... Bf5 {[%clk 0:02:42]} 20. Rxb8 {[%clk 0:02:29.6]} 20... Rxb8 {[%clk
0:02:42.3]} 21. Re7 {[%clk 0:02:30.1]} 21... a5 {[%clk 0:02:41.2]} 22. Ra7
{[%clk 0:02:29.4]} 22... Rb5 {[%clk 0:02:40.9]} 23. Kf2 {[%clk 0:02:14.7]} 23...
Bxc2 {[%clk 0:02:40.1]} 24. Ke3 {[%clk 0:02:15]} 24... a4 {[%clk 0:02:38.4]} 25.
g4 {[%clk 0:02:07.5]} 25... Rb1 {[%clk 0:02:30.9]} 26. Bg2 {[%clk 0:02:07.5]}
26... Rd1 {[%clk 0:02:08.7]} 27. Rd7 {[%clk 0:01:57]} 27... Rd3+ {[%clk
0:02:02.2]} 28. Ke2 {[%clk 0:01:57]} 28... d4 {[%clk 0:01:54]} 29. Rxd4 {[%clk
0:01:48.4]} 29... Rxc3 {[%clk 0:01:52]} 30. Rd8+ {[%clk 0:01:36.9]} 30... Kg7
{[%clk 0:01:50.5]} 31. Bd5 {[%clk 0:01:34.5]} 31... Rxh3 {[%clk 0:01:40.2]} 32.
Bxc4 {[%clk 0:01:33.1]} 32... f5 {[%clk 0:01:37.6]} 33. g5 {[%clk 0:01:22]}
33... hxg5 {[%clk 0:01:36.4]} 34. fxg5 {[%clk 0:01:22.5]} 34... Be4 {[%clk
0:01:23.9]} 35. Rd7 {[%clk 0:01:16.7]} 35... Kg6 {[%clk 0:01:22.8]} 36. Bxf7+
{[%clk 0:01:09.8]} 36... Kxg5 {[%clk 0:01:22.9]} 37. Ra7 {[%clk 0:01:09.1]}
37... a3 {[%clk 0:01:22.5]} 38. Ra5 {[%clk 0:01:04.8]} 38... Kf4 {[%clk
0:01:21.7]} 39. Be6 {[%clk 0:01:04.5]} 39... Rh2+ {[%clk 0:01:21.2]} 40. Kd1
{[%clk 0:01:01.2]} 40... Rh3 {[%clk 0:01:09.9]} 41. Ke2 {[%clk 0:01:01.4]} 41...
Bb1 {[%clk 0:00:56.1]} 42. Kf2 {[%clk 0:00:49.8]} 42... Bxa2 {[%clk 0:00:39.8]}
43. Ra4+ {[%clk 0:00:49.8]} 43... Ke5 {[%clk 0:00:39.3]} 44. Bxa2 {[%clk
0:00:44.3]} 44... Rh2+ {[%clk 0:00:39.2]} 45. Ke3 {[%clk 0:00:44.1]} 45... Rxa2
{[%clk 0:00:40.1]} 46. Ra5+ {[%clk 0:00:44.4]} 46... Kf6 {[%clk 0:00:39.9]} 47.
Kf4 {[%clk 0:00:44.9]} 47... Ra1 {[%clk 0:00:31.6]} 48. Rxf5+ {[%clk 0:00:44.4]}
48... Kg6 {[%clk 0:00:31.9]} 49. Ra5 {[%clk 0:00:45.3]} 49... a2 {[%clk
0:00:31.6]} 50. Ra6+ {[%clk 0:00:44.2]} 50... Kf7 {[%clk 0:00:29.6]} 51. Ra7+
{[%clk 0:00:41.3]} 51... Ke8 {[%clk 0:00:29.9]} 52. Kf5 {[%clk 0:00:35.5]} 52...
Rf1+ {[%clk 0:00:28.8]} 53. Ke6 {[%clk 0:00:36]} 53... a1=Q {[%clk 0:00:26.9]}
0-1

[Event "Early-Titled-Tuesday-Blitz-December-26-2023"]
[Site "Chess.com"]
[Date "2023.12.26"]
[Round "6"]
[White "JafarTheParrot"]
[Black "AsaHoffmann"]
[Result "1-0"]
[WhiteElo "2518"]
[BlackElo "2324"]
[TimeControl "180+1"]
[EndTime "9:06:38 PST"]
[Termination "JafarTheParrot won on time"]

1. e4 {[%clk 0:02:58.8]} 1... d6 {[%clk 0:02:59.1]} 2. Nc3 {[%clk 0:02:56.3]}
2... c6 {[%clk 0:02:57.9]} 3. g3 {[%clk 0:02:55.7]} 3... Nf6 {[%clk 0:02:56.7]}
4. Bg2 {[%clk 0:02:55.5]} 4... e5 {[%clk 0:02:56.1]} 5. Nge2 {[%clk 0:02:54.7]}
5... Be7 {[%clk 0:02:55.1]} 6. d3 {[%clk 0:02:54.3]} 6... O-O {[%clk 0:02:53.9]}
7. O-O {[%clk 0:02:53.9]} 7... Nbd7 {[%clk 0:02:50.8]} 8. h3 {[%clk 0:02:51.1]}
8... b5 {[%clk 0:02:47]} 9. f4 {[%clk 0:02:49.7]} 9... b4 {[%clk 0:02:44.9]} 10.
Na4 {[%clk 0:02:46.8]} 10... c5 {[%clk 0:02:41.8]} 11. f5 {[%clk 0:02:45.3]}
11... Bb7 {[%clk 0:02:26.3]} 12. g4 {[%clk 0:02:43.9]} 12... h6 {[%clk 0:02:26]}
13. Be3 {[%clk 0:02:37]} 13... Nh7 {[%clk 0:02:25.4]} 14. c4 {[%clk 0:02:33.3]}
14... Bg5 {[%clk 0:02:23.1]} 15. Bf2 {[%clk 0:02:33.2]} 15... Bc6 {[%clk
0:02:18]} 16. b3 {[%clk 0:02:27.9]} 16... Bxa4 {[%clk 0:02:16.7]} 17. bxa4
{[%clk 0:02:28.8]} 17... Rb8 {[%clk 0:02:11.4]} 18. Qe1 {[%clk 0:02:16.7]} 18...
Qa5 {[%clk 0:02:02.3]} 19. h4 {[%clk 0:02:13.1]} 19... Be7 {[%clk 0:01:57.9]}
20. Qd1 {[%clk 0:02:07.5]} 20... Nb6 {[%clk 0:01:56.6]} 21. Kh2 {[%clk
0:01:58.4]} 21... Nxa4 {[%clk 0:01:55.1]} 22. Kh3 {[%clk 0:01:56.2]} 22... Nc3
{[%clk 0:01:55]} 23. Qd2 {[%clk 0:01:52.5]} 23... Qa3 {[%clk 0:01:48.9]} 24. Ng1
{[%clk 0:01:48.2]} 24... Na4 {[%clk 0:01:36.8]} 25. Nf3 {[%clk 0:01:45.2]} 25...
Qc3 {[%clk 0:01:36]} 26. Qe2 {[%clk 0:01:41.7]} 26... Nb2 {[%clk 0:01:33.8]} 27.
Rfc1 {[%clk 0:01:35.7]} 27... Qa3 {[%clk 0:01:21]} 28. Bf1 {[%clk 0:01:35.6]}
28... Na4 {[%clk 0:01:18.3]} 29. Be3 {[%clk 0:01:30]} 29... Nc3 {[%clk
0:01:17.5]} 30. Qd2 {[%clk 0:01:29.1]} 30... Qa5 {[%clk 0:01:12.7]} 31. g5
{[%clk 0:01:27.8]} 31... hxg5 {[%clk 0:01:10]} 32. hxg5 {[%clk 0:01:27.8]} 32...
Qd8 {[%clk 0:01:05]} 33. Kg4 {[%clk 0:01:27.4]} 33... g6 {[%clk 0:01:02.3]} 34.
Bg2 {[%clk 0:01:18.7]} 34... Qd7 {[%clk 0:01:01.5]} 35. Rh1 {[%clk 0:01:16.4]}
35... Kg7 {[%clk 0:00:56.5]} 36. a3 {[%clk 0:01:02.7]} 36... a5 {[%clk
0:00:54.8]} 37. axb4 {[%clk 0:01:02]} 37... axb4 {[%clk 0:00:54.8]} 38. Rh6
{[%clk 0:00:43.6]} 38... Rh8 {[%clk 0:00:54.2]} 39. Rah1 {[%clk 0:00:43.3]}
39... Rbg8 {[%clk 0:00:49.3]} 40. d4 {[%clk 0:00:33.5]} 40... cxd4 {[%clk
0:00:42.5]} 41. Nxd4 {[%clk 0:00:32.8]} 41... Nf8 {[%clk 0:00:24]} 42. Ne6+
{[%clk 0:00:29.8]} 42... Nxe6 {[%clk 0:00:14.9]} 43. f6+ {[%clk 0:00:28.6]}
43... Kf8 {[%clk 0:00:07]} 44. Rxh8 {[%clk 0:00:28.2]} 44... Nf4+ {[%clk
0:00:03.2]} 45. Kg3 {[%clk 0:00:27.5]} 1-0

[Event "Early-Titled-Tuesday-Blitz-December-26-2023"]
[Site "Chess.com"]
[Date "2023.12.26"]
[Round "6"]
[White "Barbix1"]
[Black "LeoLV10"]
[Result "0-1"]
[WhiteElo "2274"]
[BlackElo "2475"]
[TimeControl "180+1"]
[EndTime "9:06:44 PST"]
[Termination "LeoLV10 won by checkmate"]

1. e4 {[%clk 0:03:00.9]} 1... c6 {[%clk 0:03:00.2]} 2. d4 {[%clk 0:02:59.8]}
2... d5 {[%clk 0:03:01.1]} 3. e5 {[%clk 0:02:59.8]} 3... Bf5 {[%clk 0:03:00.8]}
4. h4 {[%clk 0:02:59.4]} 4... h5 {[%clk 0:03:00.8]} 5. Bd3 {[%clk 0:02:59.7]}
5... Bxd3 {[%clk 0:03:01.1]} 6. Qxd3 {[%clk 0:03:00.6]} 6... Qa5+ {[%clk
0:03:00.3]} 7. Nd2 {[%clk 0:02:49.9]} 7... e6 {[%clk 0:02:59.3]} 8. Ne2 {[%clk
0:02:50.3]} 8... c5 {[%clk 0:02:49]} 9. c4 {[%clk 0:02:39.1]} 9... Ne7 {[%clk
0:02:46.2]} 10. O-O {[%clk 0:02:37.4]} 10... Nbc6 {[%clk 0:02:46.4]} 11. cxd5
{[%clk 0:02:23.5]} 11... Nxd5 {[%clk 0:02:46.5]} 12. Nc4 {[%clk 0:02:20.9]}
12... Qa6 {[%clk 0:02:45.9]} 13. Bg5 {[%clk 0:01:59]} 13... Ncb4 {[%clk
0:01:46.3]} 14. Qb3 {[%clk 0:01:48.8]} 14... cxd4 {[%clk 0:01:45.6]} 15. Nxd4
{[%clk 0:01:32.6]} 15... Bc5 {[%clk 0:01:45.4]} 16. a3 {[%clk 0:01:28.6]} 16...
Nc6 {[%clk 0:01:21.4]} 17. Nxc6 {[%clk 0:00:48.1]} 17... Qxc6 {[%clk 0:01:21.4]}
18. Rac1 {[%clk 0:00:44.8]} 18... Qd7 {[%clk 0:01:03]} 19. Qd1 {[%clk
0:00:20.5]} 19... Rc8 {[%clk 0:00:56]} 20. b4 {[%clk 0:00:19.2]} 20... Bf8
{[%clk 0:00:50.5]} 21. Qf3 {[%clk 0:00:18.6]} 21... b5 {[%clk 0:00:35.6]} 22.
Na5 {[%clk 0:00:13.8]} 22... Be7 {[%clk 0:00:28.2]} 23. Rxc8+ {[%clk 0:00:13.7]}
23... Qxc8 {[%clk 0:00:28.3]} 24. Rc1 {[%clk 0:00:14.3]} 24... Qd7 {[%clk
0:00:25.5]} 25. Nc6 {[%clk 0:00:07.9]} 25... Bxg5 {[%clk 0:00:20.7]} 26. hxg5
{[%clk 0:00:08.8]} 26... g6 {[%clk 0:00:21.3]} 27. Nb8 {[%clk 0:00:03.8]} 27...
Qb7 {[%clk 0:00:15.3]} 28. Nc6 {[%clk 0:00:03.9]} 28... O-O {[%clk 0:00:14.6]}
29. Nd4 {[%clk 0:00:04.1]} 29... a6 {[%clk 0:00:13.5]} 30. Qd3 {[%clk
0:00:03.8]} 30... Rc8 {[%clk 0:00:11.1]} 31. Rc5 {[%clk 0:00:04]} 31... Qb8
{[%clk 0:00:10.4]} 32. Qc3 {[%clk 0:00:03.4]} 32... Rd8 {[%clk 0:00:10.7]} 33.
Rc6 {[%clk 0:00:03.3]} 33... Qxe5 {[%clk 0:00:09.4]} 34. Rxa6 {[%clk 0:00:03.5]}
34... Nf4 {[%clk 0:00:09.1]} 35. Rc6 {[%clk 0:00:02.3]} 35... Qxd4 {[%clk
0:00:09.1]} 36. Qxd4 {[%clk 0:00:02.1]} 36... Rxd4 {[%clk 0:00:10]} 37. Rc5
{[%clk 0:00:02.5]} 37... Ne2+ {[%clk 0:00:10.1]} 38. Kf1 {[%clk 0:00:02.6]}
38... Nf4 {[%clk 0:00:09.7]} 39. g3 {[%clk 0:00:03.1]} 39... Rd1# {[%clk
0:00:09.5]} 0-1

[Event "Early-Titled-Tuesday-Blitz-December-26-2023"]
[Site "Chess.com"]
[Date "2023.12.26"]
[Round "6"]
[White "Nasrin_Babayeva"]
[Black "maurovargas01"]
[Result "1-0"]
[WhiteElo "1823"]
[BlackElo "1866"]
[TimeControl "180+1"]
[EndTime "9:06:46 PST"]
[Termination "Nasrin_Babayeva won on time"]

1. d4 {[%clk 0:03:00.9]} 1... d5 {[%clk 0:02:29.5]} 2. c4 {[%clk 0:02:40.6]}
2... e6 {[%clk 0:02:28.9]} 3. e3 {[%clk 0:02:34.4]} 3... c6 {[%clk 0:02:28.3]}
4. Nc3 {[%clk 0:02:33.1]} 4... Nf6 {[%clk 0:02:28.2]} 5. b3 {[%clk 0:02:32.7]}
5... Nbd7 {[%clk 0:02:28.5]} 6. Bb2 {[%clk 0:02:32.8]} 6... Bd6 {[%clk
0:02:27.7]} 7. Bd3 {[%clk 0:02:33.3]} 7... O-O {[%clk 0:02:27.4]} 8. Nf3 {[%clk
0:02:33.3]} 8... Re8 {[%clk 0:02:15.4]} 9. O-O {[%clk 0:02:33.6]} 9... Nf8
{[%clk 0:02:15]} 10. Qc2 {[%clk 0:02:28.5]} 10... Ng6 {[%clk 0:02:12.5]} 11.
Rad1 {[%clk 0:02:25.2]} 11... Bd7 {[%clk 0:02:11.9]} 12. e4 {[%clk 0:02:23.2]}
12... Rc8 {[%clk 0:02:11.2]} 13. e5 {[%clk 0:02:22.6]} 13... Bb8 {[%clk
0:02:06.1]} 14. exf6 {[%clk 0:02:04.1]} 14... gxf6 {[%clk 0:01:59.7]} 15. Rfe1
{[%clk 0:01:45.7]} 15... Qc7 {[%clk 0:01:59]} 16. cxd5 {[%clk 0:01:36.6]} 16...
exd5 {[%clk 0:01:56.7]} 17. Bxg6 {[%clk 0:01:19.8]} 17... hxg6 {[%clk
0:01:55.5]} 18. h3 {[%clk 0:01:10]} 18... Kg7 {[%clk 0:01:54]} 19. Rc1 {[%clk
0:01:04.9]} 19... Bf5 {[%clk 0:01:50.2]} 20. Qd2 {[%clk 0:00:56.7]} 20... Qd6
{[%clk 0:01:45.4]} 21. Ne2 {[%clk 0:00:40]} 21... Be4 {[%clk 0:01:43.5]} 22. Ng3
{[%clk 0:00:40.1]} 22... Bxf3 {[%clk 0:01:29.5]} 23. gxf3 {[%clk 0:00:41]} 23...
a6 {[%clk 0:01:23.5]} 24. Rxe8 {[%clk 0:00:38.4]} 24... Rxe8 {[%clk 0:01:22.8]}
25. Re1 {[%clk 0:00:37.5]} 25... Rh8 {[%clk 0:01:22.6]} 26. Kg2 {[%clk 0:00:35]}
26... Qd7 {[%clk 0:01:09]} 27. Rh1 {[%clk 0:00:34.3]} 27... Qe7 {[%clk
0:01:00.2]} 28. Qe3 {[%clk 0:00:30.1]} 28... Qd7 {[%clk 0:00:49.9]} 29. Ba3
{[%clk 0:00:29.1]} 29... Re8 {[%clk 0:00:40.2]} 30. Qd2 {[%clk 0:00:27.9]} 30...
Re6 {[%clk 0:00:25.4]} 31. Qb4 {[%clk 0:00:26.9]} 31... Qe8 {[%clk 0:00:23.2]}
32. h4 {[%clk 0:00:22.4]} 32... Bxg3 {[%clk 0:00:15.9]} 33. Kxg3 {[%clk
0:00:20.4]} 33... Qb8+ {[%clk 0:00:14.1]} 34. Kg2 {[%clk 0:00:20.6]} 34... Re8
{[%clk 0:00:08.4]} 35. h5 {[%clk 0:00:18.9]} 35... Qf4 {[%clk 0:00:03.7]} 36.
hxg6 {[%clk 0:00:15.8]} 36... Qg5+ {[%clk 0:00:03.7]} 37. Kf1 {[%clk 0:00:14.3]}
1-0

[Event "Early-Titled-Tuesday-Blitz-December-26-2023"]
[Site "Chess.com"]
[Date "2023.12.26"]
[Round "6"]
[White "Alenzer"]
[Black "AnaKuchava"]
[Result "0-1"]
[WhiteElo "2062"]
[BlackElo "2209"]
[TimeControl "180+1"]
[EndTime "9:06:48 PST"]
[Termination "AnaKuchava won by checkmate"]

1. e4 {[%clk 0:02:57.7]} 1... c5 {[%clk 0:02:59.2]} 2. Nf3 {[%clk 0:02:56.8]}
2... d6 {[%clk 0:02:57.1]} 3. c3 {[%clk 0:02:56.5]} 3... Nf6 {[%clk 0:02:51.7]}
4. h3 {[%clk 0:02:56.5]} 4... g6 {[%clk 0:02:49]} 5. Bd3 {[%clk 0:02:56]} 5...
Bg7 {[%clk 0:02:48.1]} 6. Bc2 {[%clk 0:02:56.4]} 6... O-O {[%clk 0:02:42.8]} 7.
O-O {[%clk 0:02:55.9]} 7... Nc6 {[%clk 0:02:37.6]} 8. Re1 {[%clk 0:02:54.1]}
8... e5 {[%clk 0:02:20.7]} 9. d3 {[%clk 0:02:43.2]} 9... h6 {[%clk 0:02:13.6]}
10. Be3 {[%clk 0:02:41.9]} 10... Be6 {[%clk 0:02:10.9]} 11. Nbd2 {[%clk
0:02:41.5]} 11... b5 {[%clk 0:02:01.5]} 12. Bb3 {[%clk 0:02:35.1]} 12... Kh7
{[%clk 0:01:42]} 13. a4 {[%clk 0:02:10.5]} 13... a6 {[%clk 0:01:41.1]} 14. axb5
{[%clk 0:02:08.7]} 14... axb5 {[%clk 0:01:42]} 15. Qc2 {[%clk 0:02:08]} 15...
Qc7 {[%clk 0:01:37]} 16. Bxe6 {[%clk 0:01:58.9]} 16... fxe6 {[%clk 0:01:37.9]}
17. Qb3 {[%clk 0:01:48.7]} 17... Qd7 {[%clk 0:01:17.6]} 18. Rxa8 {[%clk
0:01:34.1]} 18... Rxa8 {[%clk 0:01:16.6]} 19. Qxb5 {[%clk 0:01:25]} 19... Rc8
{[%clk 0:01:14.9]} 20. Qa4 {[%clk 0:01:16.6]} 20... Rb8 {[%clk 0:01:10.2]} 21.
Nc4 {[%clk 0:01:11.6]} 21... Nh5 {[%clk 0:01:01.8]} 22. Qc2 {[%clk 0:01:08.1]}
22... Nf4 {[%clk 0:00:59]} 23. Kh2 {[%clk 0:00:53.3]} 23... d5 {[%clk
0:00:50.7]} 24. Bxf4 {[%clk 0:00:35.5]} 24... dxc4 {[%clk 0:00:45.3]} 25. Bc1
{[%clk 0:00:16.9]} 25... cxd3 {[%clk 0:00:45.4]} 26. Qd2 {[%clk 0:00:12.3]}
26... c4 {[%clk 0:00:45.2]} 27. Qe3 {[%clk 0:00:11.2]} 27... Na5 {[%clk
0:00:34]} 28. g4 {[%clk 0:00:10.4]} 28... Nb3 {[%clk 0:00:32.9]} 29. g5 {[%clk
0:00:09.5]} 29... h5 {[%clk 0:00:32.6]} 30. Nd2 {[%clk 0:00:08.4]} 30... Nxc1
{[%clk 0:00:32.1]} 31. Rxc1 {[%clk 0:00:09.3]} 31... Qc6 {[%clk 0:00:24.8]} 32.
Rb1 {[%clk 0:00:07.7]} 32... Bf8 {[%clk 0:00:24.3]} 33. h4 {[%clk 0:00:06.6]}
33... Bc5 {[%clk 0:00:22.6]} 34. Qf3 {[%clk 0:00:07.3]} 34... Rf8 {[%clk
0:00:22.4]} 35. Qg3 {[%clk 0:00:04.7]} 35... Rxf2+ {[%clk 0:00:21.2]} 36. Kh3
{[%clk 0:00:05.1]} 36... Rxd2 {[%clk 0:00:18.5]} 37. Qxe5 {[%clk 0:00:05.5]}
37... Qd6 {[%clk 0:00:17.3]} 38. Qxd6 {[%clk 0:00:02.3]} 38... Bxd6 {[%clk
0:00:18.2]} 39. b4 {[%clk 0:00:01.7]} 39... Rh2# {[%clk 0:00:17.3]} 0-1

[Event "Early-Titled-Tuesday-Blitz-December-26-2023"]
[Site "Chess.com"]
[Date "2023.12.26"]
[Round "6"]
[White "DTChess"]
[Black "BilodeauA"]
[Result "0-1"]
[WhiteElo "2663"]
[BlackElo "2886"]
[TimeControl "180+1"]
[EndTime "9:06:53 PST"]
[Termination "BilodeauA won by resignation"]

1. e4 {[%clk 0:03:00.9]} 1... c5 {[%clk 0:02:57]} 2. Nf3 {[%clk 0:03:00.8]} 2...
Nc6 {[%clk 0:02:57.6]} 3. Nc3 {[%clk 0:03:00.9]} 3... d6 {[%clk 0:02:57.1]} 4.
d4 {[%clk 0:03:01.1]} 4... cxd4 {[%clk 0:02:58]} 5. Nxd4 {[%clk 0:03:01.6]} 5...
Nf6 {[%clk 0:02:58.8]} 6. Bc4 {[%clk 0:03:01.2]} 6... e6 {[%clk 0:02:58.8]} 7.
Bb3 {[%clk 0:03:01.5]} 7... a6 {[%clk 0:02:56.4]} 8. Be3 {[%clk 0:02:58.4]} 8...
Be7 {[%clk 0:02:56.7]} 9. f3 {[%clk 0:02:58.6]} 9... Bd7 {[%clk 0:02:53.7]} 10.
Qd2 {[%clk 0:02:57.9]} 10... Na5 {[%clk 0:02:53.3]} 11. O-O {[%clk 0:02:57.6]}
11... Qc7 {[%clk 0:02:52.7]} 12. Rfd1 {[%clk 0:02:57.1]} 12... Nc4 {[%clk
0:02:50]} 13. Bxc4 {[%clk 0:02:57.1]} 13... Qxc4 {[%clk 0:02:50.9]} 14. Nb3
{[%clk 0:02:57.5]} 14... O-O {[%clk 0:02:47.2]} 15. Qf2 {[%clk 0:02:56.3]} 15...
Qc7 {[%clk 0:02:31.8]} 16. Rd2 {[%clk 0:02:53]} 16... b5 {[%clk 0:02:27]} 17. a3
{[%clk 0:02:52.1]} 17... Rac8 {[%clk 0:02:26]} 18. Rad1 {[%clk 0:02:50.6]} 18...
Qb8 {[%clk 0:02:22.8]} 19. Bf4 {[%clk 0:02:42.9]} 19... e5 {[%clk 0:02:20.5]}
20. Bg5 {[%clk 0:02:39.6]} 20... Ng4 {[%clk 0:02:12]} 21. fxg4 {[%clk 0:02:16]}
21... Bxg5 {[%clk 0:02:11.5]} 22. Rxd6 {[%clk 0:02:14.6]} 22... Bxg4 {[%clk
0:02:12.2]} 23. R1d3 {[%clk 0:02:12.1]} 23... Be6 {[%clk 0:02:10.7]} 24. Nd5
{[%clk 0:02:04.8]} 24... Rc4 {[%clk 0:01:57.5]} 25. Rxa6 {[%clk 0:01:51.9]}
25... Rxe4 {[%clk 0:01:51.1]} 26. Nc5 {[%clk 0:01:45.1]} 26... Bxd5 {[%clk
0:01:48.7]} 27. Rxd5 {[%clk 0:01:31.4]} 27... Be3 {[%clk 0:01:46.7]} 28. Nxe4
{[%clk 0:01:28.5]} 28... Bxf2+ {[%clk 0:01:44.6]} 29. Nxf2 {[%clk 0:01:28.6]}
29... Qc8 {[%clk 0:01:41.5]} 30. Ra5 {[%clk 0:01:21.9]} 30... Qxc2 {[%clk
0:01:34.8]} 31. Raxb5 {[%clk 0:01:20]} 31... e4 {[%clk 0:01:33.9]} 32. Rbc5
{[%clk 0:00:52.1]} 32... Qxb2 {[%clk 0:01:31.7]} 33. h3 {[%clk 0:00:47.9]} 33...
e3 {[%clk 0:01:29.6]} 34. Nd3 {[%clk 0:00:44.9]} 34... Qxa3 {[%clk 0:01:26.7]}
35. Nf4 {[%clk 0:00:38.9]} 35... g6 {[%clk 0:01:16.2]} 36. Re5 {[%clk
0:00:31.5]} 36... Rd8 {[%clk 0:01:11.1]} 37. Kh2 {[%clk 0:00:23]} 37... f6
{[%clk 0:00:57]} 38. Red5 {[%clk 0:00:18.8]} 38... Rxd5 {[%clk 0:00:57]} 39.
Rxd5 {[%clk 0:00:19.7]} 39... g5 {[%clk 0:00:55.9]} 40. Ne2 {[%clk 0:00:16.1]}
40... Qa2 {[%clk 0:00:54.5]} 41. Rd8+ {[%clk 0:00:15.6]} 41... Kf7 {[%clk
0:00:54.2]} 42. Ng3 {[%clk 0:00:16]} 42... Qa7 {[%clk 0:00:50]} 43. Rd3 {[%clk
0:00:13]} 43... Qe7 {[%clk 0:00:47.3]} 44. Ne2 {[%clk 0:00:12.7]} 44... f5
{[%clk 0:00:43.8]} 45. g3 {[%clk 0:00:12.9]} 45... Qe4 {[%clk 0:00:42.2]} 46.
Ra3 {[%clk 0:00:12.1]} 46... Qf3 {[%clk 0:00:41.6]} 47. Ng1 {[%clk 0:00:11.5]}
47... Qf2+ {[%clk 0:00:41.5]} 48. Kh1 {[%clk 0:00:11.8]} 48... Qxg3 {[%clk
0:00:39.6]} 49. Ra7+ {[%clk 0:00:11.6]} 49... Kg6 {[%clk 0:00:38.3]} 50. Ra6+
{[%clk 0:00:12.2]} 50... Kh5 {[%clk 0:00:37.5]} 51. Ra7 {[%clk 0:00:12.3]} 51...
h6 {[%clk 0:00:37.3]} 52. Ra6 {[%clk 0:00:11.2]} 52... f4 {[%clk 0:00:37.1]} 53.
Rf6 {[%clk 0:00:10.7]} 53... Qf2 {[%clk 0:00:30.4]} 54. Re6 {[%clk 0:00:10]}
54... f3 {[%clk 0:00:29]} 0-1

[Event "Early-Titled-Tuesday-Blitz-December-26-2023"]
[Site "Chess.com"]
[Date "2023.12.26"]
[Round "6"]
[White "Hikaru"]
[Black "Alexander_Donchenko"]
[Result "1-0"]
[WhiteElo "3220"]
[BlackElo "2917"]
[TimeControl "180+1"]
[EndTime "9:07:00 PST"]
[Termination "Hikaru won on time"]

1. Nf3 {[%clk 0:03:00.9]} 1... Nf6 {[%clk 0:02:59.6]} 2. e3 {[%clk 0:03:00.8]}
2... g6 {[%clk 0:02:59.2]} 3. b3 {[%clk 0:02:59.9]} 3... Bg7 {[%clk 0:02:59.7]}
4. d4 {[%clk 0:03:00.7]} 4... c5 {[%clk 0:02:58.2]} 5. Bb2 {[%clk 0:02:51.6]}
5... cxd4 {[%clk 0:02:58.2]} 6. Nxd4 {[%clk 0:02:51.6]} 6... O-O {[%clk
0:02:57.8]} 7. Be2 {[%clk 0:02:48.7]} 7... Nc6 {[%clk 0:02:57]} 8. O-O {[%clk
0:02:48.8]} 8... d6 {[%clk 0:02:47.5]} 9. Nxc6 {[%clk 0:02:48.7]} 9... bxc6
{[%clk 0:02:47.7]} 10. c4 {[%clk 0:02:49.5]} 10... a5 {[%clk 0:02:43]} 11. Bf3
{[%clk 0:02:48.6]} 11... Bd7 {[%clk 0:02:39.2]} 12. Nc3 {[%clk 0:02:48.8]} 12...
Qb6 {[%clk 0:02:33.4]} 13. Na4 {[%clk 0:02:47.4]} 13... Qc7 {[%clk 0:02:33.2]}
14. c5 {[%clk 0:02:38.2]} 14... d5 {[%clk 0:02:30.6]} 15. Nb6 {[%clk 0:02:38.3]}
15... Ra7 {[%clk 0:02:23.7]} 16. Qd2 {[%clk 0:02:10.2]} 16... e5 {[%clk
0:02:13.4]} 17. Bc3 {[%clk 0:02:10.3]} 17... Bg4 {[%clk 0:01:50.7]} 18. Bxg4
{[%clk 0:00:59.3]} 18... Nxg4 {[%clk 0:01:51.6]} 19. h3 {[%clk 0:00:59.6]} 19...
Nf6 {[%clk 0:01:51.7]} 20. Bxa5 {[%clk 0:00:59.8]} 20... Ne4 {[%clk 0:01:41.1]}
21. Qb4 {[%clk 0:00:59.8]} 21... Rb8 {[%clk 0:01:24.5]} 22. f3 {[%clk
0:00:57.8]} 22... Ng3 {[%clk 0:00:58.6]} 23. Rf2 {[%clk 0:00:56.1]} 23... e4
{[%clk 0:00:57.5]} 24. Rd1 {[%clk 0:00:23]} 24... exf3 {[%clk 0:00:57]} 25. Nxd5
{[%clk 0:00:20.5]} 25... Ne2+ {[%clk 0:00:39.6]} 26. Kh1 {[%clk 0:00:20.7]}
26... Ng3+ {[%clk 0:00:36.8]} 27. Kg1 {[%clk 0:00:20.8]} 27... Ne2+ {[%clk
0:00:37.5]} 28. Kh1 {[%clk 0:00:21.4]} 28... cxd5 {[%clk 0:00:07.8]} 29. Bxc7
{[%clk 0:00:20.8]} 29... Rxb4 {[%clk 0:00:08.4]} 30. Bb6 {[%clk 0:00:17.3]}
30... Rxa2 {[%clk 0:00:08]} 31. gxf3 {[%clk 0:00:17.9]} 31... Rxb3 {[%clk
0:00:03.3]} 32. Rxd5 {[%clk 0:00:15.8]} 32... Ng3+ {[%clk 0:00:01.3]} 33. Kg2
{[%clk 0:00:16.4]} 33... Rxf2+ {[%clk 0:00:01.5]} 34. Kxf2 {[%clk 0:00:17.3]}
34... Nf5 {[%clk 0:00:01.9]} 35. Rd8+ {[%clk 0:00:16.8]} 35... Bf8 {[%clk
0:00:02.6]} 36. c6 {[%clk 0:00:17.4]} 36... Rc3 {[%clk 0:00:02.9]} 37. c7 {[%clk
0:00:17.2]} 37... Ne7 {[%clk 0:00:02.7]} 38. Ba5 {[%clk 0:00:12.3]} 38... Rc2+
{[%clk 0:00:01.5]} 39. Ke1 {[%clk 0:00:12.5]} 39... Rc4 {[%clk 0:00:01.1]} 40.
Kd2 {[%clk 0:00:11.9]} 40... Kg7 {[%clk 0:00:01.2]} 41. Kd3 {[%clk 0:00:12.5]}
41... Rc6 {[%clk 0:00:01.1]} 42. e4 {[%clk 0:00:09.5]} 42... f6 {[%clk
0:00:01.2]} 43. f4 {[%clk 0:00:08.9]} 43... Kf7 {[%clk 0:00:01.7]} 44. f5 {[%clk
0:00:09.6]} 44... gxf5 {[%clk 0:00:01.8]} 45. exf5 {[%clk 0:00:10.5]} 45... Bh6
{[%clk 0:00:01.6]} 46. Rh8 {[%clk 0:00:06.6]} 1-0